Cogmind - Beta 14 X2 @@@ ROGUE MODE // 2024.08.04 @ 21:14:37 Player: Olafz Result: Destroyed by Y-54 Guardian with Gatling Laser Performance ------------- Evolutions (3) 1500 Regions Visited (5) 1000 Robots Destroyed (0) 0 Value Destroyed (0) 0 Prototype IDs (1) 20 Alien Tech Used (0) 0 Bonus (834) 834 TOTAL SCORE: 3354 Bonus ------- Pacifist 834 Cogmind --------- Core Integrity 0/700 Matter 291/300 Energy 99/100 System Corruption 1% Temperature Cool (12) Movement Core (50) Location -7/Lower Caves Parts ------- > --- POWER (1) -------- (None) > --- PROPULSION (2) --- (None) > --- UTILITY (8) ------ Improved Terrain Scan Processor Hacking Suite > --- WEAPON (2) ------- (None) > --- INVENTORY (5) ---- Improved Terrain Scan Processor Peak State ------------ > --- POWER ------------ (None) > --- PROPULSION ------- Cesium-ion Thruster > --- UTILITY ---------- Improved Sensor Array Improved Terrain Scanner Improved Terrain Scan Processor ECM Suite Hacking Suite > --- WEAPON ----------- (None) > --- INVENTORY -------- Improved Terrain Scan Processor [Rating: 16] Favorites ----------- Power Light Ion Engine Engine Light Ion Engine Propulsion Flight Unit Leg Aluminum Leg Hover Unit Hover Unit Flight Unit Flight Unit Utility Improved Terrain Scan Processor Device ECM Suite Storage Small Storage Unit Processor Improved Terrain Scan Processor Hackware Hacking Suite Weapon Medium Laser Energy Gun Medium Laser Build | -11 -10 -9 -8 -7 -7 ------- Run | Yrd Mat Mat Mat Fac Low Slots Evolved 6 | . . 2 2 2 . Power . | . . . . . . Propulsion . | . . . . . . Utility 6 | . . 2 2 2 . Weapon . | . . . . . . Parts Attached 12 | . 4 . 6 2 . Power . | . . . . . . Engine . | . . . . . . Core . | . . . . . . Reactor . | . . . . . . Propulsion 4 | . 2 . 1 1 . Treads . | . . . . . . Leg . | . . . . . . Wheel . | . . . . . . Hover 2 | . 1 . . 1 . Flight 2 | . 1 . 1 . . Utility 8 | . 2 . 5 1 . Device 6 | . 2 . 3 1 . Storage . | . . . . . . Processor 1 | . . . 1 . . Hackware 1 | . . . 1 . . Protection . | . . . . . . Artifact . | . . . . . . Weapon . | . . . . . . Energy Gun . | . . . . . . Energy Cannon . | . . . . . . Ballistic Gun . | . . . . . . Ballistic Cannon . | . . . . . . Launcher . | . . . . . . Special Weapon . | . . . . . . Impact Weapon . | . . . . . . Slashing Weapon . | . . . . . . Piercing Weapon . | . . . . . . Special Melee Weapon . | . . . . . . Unidentified Prototypes 1 | . . . . 1 . Parts Lost 10 | . . 2 6 2 . Power . | . . . . . . Propulsion 4 | . . 1 2 1 . Utility 6 | . . 1 4 1 . Weapon . | . . . . . . Highest Loss Streak 4 | . . 2 4 2 . To Critical Strikes . | . . . . . . Average Slot Usage (%) 25 | . 35 42 25 18 15 Hover 2 | . 5 11 . 1 . Flight 3 | . 10 11 3 . . Device 9 | . 8 20 16 2 . Processor 4 | . . . 3 7 7 Hackware 3 | . . . 2 7 7 Naked Turns 4 | . 4 . . . . Heaviest Build 11 | 11 11 3 4 1 . Greatest Support 20 | 20 20 4 5 8 3 Greatest Overweight (x) . | . . . . . . Average Overweight (x) . | . . . . . . Largest Inventory Capacity 8 | . 8 5 5 5 5 Average Capacity 5 | . 5 5 5 5 5 Most Carried 8 | . 8 1 1 1 1 Average Carried . | . 1 1 . 1 1 Final Capacity 8 | 8 5 5 5 5 5 Final Carried 6 | 6 1 1 1 1 1 Class Distribution -------------------- 90% | Mutant 9% | Scout Dominant Class ---------------- Mutant | -10/Materials Mutant | -9/Materials Mutant | -8/Materials Mutant | -7/Factory Mutant | -7/Lower Caves Resources | -11 -10 -9 -8 -7 -7 ----------- Run | Yrd Mat Mat Mat Fac Low Matter Collected 240 | 200 . 40 . . . Remotely . | . . . . . . Salvage Created . | . . . . . . Parts . | . . . . . . Haulers Intercepted . | . . . . . . Recyclers Shooed . | . . . . . . Parts Field Recycled . | . . . . . . Retrieved Matter . | . . . . . . Parts Self-Destructed 2 | . . . . . 2 Prevented 4 | . . . . . 4 Kills | -11 -10 -9 -8 -7 -7 ------- Run | Yrd Mat Mat Mat Fac Low Combat Hostiles Destroyed . | . . . . . . Classes Destroyed . | . . . . . . Best Kill Streak . | . . . . . . Combat Bots Only . | . . . . . . Max Kills in Single Turn . | . . . . . . Gunslinging . | . . . . . . Exploded . | . . . . . . Melee . | . . . . . . Uniques/NPCs Destroyed . | . . . . . . Combat | -11 -10 -9 -8 -7 -7 -------- Run | Yrd Mat Mat Mat Fac Low Hostile Shots Fired 188 | . . 14 67 104 3 Missed 71 | . . 4 33 33 1 Damage Taken 1485 | . . 128 518 818 21 Core 1110 | . . 35 367 687 21 Absorbed by Shields . | . . . . . . Core Remaining (%) 81 | 100 100 91 33 . . Volleys Fired . | . . . . . . Largest . | . . . . . . Hottest . | . . . . . . Shots Fired . | . . . . . . Gun . | . . . . . . Cannon . | . . . . . . Launcher . | . . . . . . Special . | . . . . . . Kinetic . | . . . . . . Thermal . | . . . . . . Explosive . | . . . . . . Electromagnetic . | . . . . . . Robot Hit Streak . | . . . . . . Robot Miss Streak . | . . . . . . Penetration Max . | . . . . . . Secondary Targets . | . . . . . . Shots Hit Robots . | . . . . . . Core Hits 1 | . . . . 1 . Critical Kills . | . . . . . . Critical Parts Destroyed . | . . . . . . Critical Strikes . | . . . . . . Melee Attacks . | . . . . . . Impact . | . . . . . . Slashing . | . . . . . . Piercing . | . . . . . . Sneak Attacks . | . . . . . . Combat Hostiles . | . . . . . . Follow-up Attacks . | . . . . . . Damage Inflicted 42 | . . . 10 32 . Guns . | . . . . . . Cannons . | . . . . . . Explosions . | . . . . . . Melee . | . . . . . . Ramming 42 | . . . 10 32 . Kinetic . | . . . . . . Thermal . | . . . . . . Explosive . | . . . . . . Electromagnetic . | . . . . . . Impact . | . . . . . . Slashing . | . . . . . . Piercing . | . . . . . . Highest Corruption 1 | . . . . 1 1 Average Corruption 1 | . . . . 1 1 Corruption Purged . | . . . . . . Corruption Blocked . | . . . . . . Overload Shots . | . . . . . . Overflow Damage . | . . . . . . Projectiles . | . . . . . . Explosions . | . . . . . . Melee . | . . . . . . Knockbacks 1 | . . . . 1 . Impact 1 | . . . . 1 . Kinetic . | . . . . . . Secondary . | . . . . . . Self-Inflicted Damage 19 | . . . 5 14 . Shots . | . . . . . . Rammed 10 | . . . 1 9 . Targets Rammed 10 | . . . 1 9 . Kicked . | . . . . . . Crushed . | . . . . . . Highest Temperature . | . . . . . . Average Temperature . | . . . . . . Received Heat Transfer 339 | . . 45 198 84 12 Siege Activations . | . . . . . . Robots Corrupted . | . . . . . . Combat Hostiles . | . . . . . . Parts Fried . | . . . . . . Impact Corruptions . | . . . . . . Robots Melted . | . . . . . . Combat Hostiles . | . . . . . . Parts Melted . | . . . . . . Heat Transferred . | . . . . . . Parts Sabotaged . | . . . . . . Parts Stolen . | . . . . . . Parts Stripped . | . . . . . . Power Chain Reactions . | . . . . . . Alert | -11 -10 -9 -8 -7 -7 ------- Run | Yrd Mat Mat Mat Fac Low Peak Influence 180 | . 23 39 137 180 . Initial 50 | . . 9 7 50 . Average 53 | . 7 17 49 85 . Maximum Alert Level . | . . . . . . Low Security (%) 100 | . 100 100 100 100 . Level 1 . | . . . . . . Level 2 . | . . . . . . Level 3 . | . . . . . . Level 4 . | . . . . . . Level 5 . | . . . . . . High Security . | . . . . . . Max Security . | . . . . . . Squads Dispatched 3 | . . 1 2 . . Investigation . | . . . . . . Extermination . | . . . . . . Reinforcement 3 | . . 1 2 . . Assault . | . . . . . . Garrison . | . . . . . . Intercept . | . . . . . . Searches Triggered . | . . . . . . Construction Impeded . | . . . . . . Haulers Reinforced . | . . . . . . Active Scanning Responses . | . . . . . . Cargo Convoy Interrupts . | . . . . . . Stealth | -11 -10 -9 -8 -7 -7 --------- Run | Yrd Mat Mat Mat Fac Low Distress Signals 1 | . . 1 . . . Communications Jammed . | . . . . . . Distress Signals . | . . . . . . Times Spotted 39 | . 2 9 18 9 1 Peak Tracking Total 12 | . 2 8 12 6 1 Tactical Retreats 6 | . 1 . 2 3 . Traps | -11 -10 -9 -8 -7 -7 ------- Run | Yrd Mat Mat Mat Fac Low Traps Triggered . | . . . . . . Indirectly . | . . . . . . Trap Hack Attempts . | . . . . . . Triggered . | . . . . . . Disarmed . | . . . . . . Reprogrammed . | . . . . . . Reused . | . . . . . . Traps Extracted . | . . . . . . Installed . | . . . . . . Triggered 2 | . . . . . 2 Machines | -11 -10 -9 -8 -7 -7 ---------- Run | Yrd Mat Mat Mat Fac Low Machines Disabled . | . . . . . . Max in Single Turn . | . . . . . . Machines Repaired . | . . . . . . Machines Dismantled . | . . . . . . Machines Sabotaged . | . . . . . . Overloaded Fab Kills . | . . . . . . Hacking | -11 -10 -9 -8 -7 -7 --------- Run | Yrd Mat Mat Mat Fac Low Machines Accessed 4 | . 1 . 1 2 . Terminals 3 | . 1 . 1 1 . Fabricators 1 | . . . . 1 . Repair Stations . | . . . . . . Recycling Units . | . . . . . . Scanalyzers . | . . . . . . Garrison Access . | . . . . . . Total Hacks 6 | . 2 . 1 3 . Successful 2 | . 1 . . 1 . Failed 4 | . 1 . 1 2 . Catastrophic 1 | . . . 1 . . Database Lockouts . | . . . . . . Manual 4 | . 2 . 1 1 . Terminals 4 | . 2 . 1 1 . Fabricators 2 | . . . . 2 . Repair Stations . | . . . . . . Recycling Units . | . . . . . . Scanalyzers . | . . . . . . Garrison Access . | . . . . . . Terminal Hacks 1 | . 1 . . . . Branch Access Points 1 | . 1 . . . . Fabricator Hacks . | . . . . . . Repair Station Hacks . | . . . . . . Recycling Unit Hacks . | . . . . . . Scanalyzer . | . . . . . . Garrison Access Hacks . | . . . . . . Unauthorized Hacks 1 | . . . . 1 . Terminals 1 | . . . . 1 . Botnet 1 | . . . . 1 . Fabricators . | . . . . . . Repair Stations . | . . . . . . Recycling Units . | . . . . . . Scanalyzers . | . . . . . . Garrison Access . | . . . . . . Data Cores Recovered . | . . . . . . Used . | . . . . . . Hacking Detections 3 | . 1 . 1 1 . Full Trace Events . | . . . . . . Feedback Events . | . . . . . . Feedback Blocked . | . . . . . . Robot Schematics Acquired . | . . . . . . Robots Built . | . . . . . . Authchips . | . . . . . . Time . | . . . . . . Total Robot Build Rating . | . . . . . . Part Schematics Acquired . | . . . . . . Parts Built . | . . . . . . Authchips . | . . . . . . Time . | . . . . . . Total Part Build Rating . | . . . . . . Parts Repaired . | . . . . . . Time . | . . . . . . Parts Recycled . | . . . . . . Recycled Matter . | . . . . . . Retrieved Matter . | . . . . . . Retrieved Components . | . . . . . . Parts Scanalyzed . | . . . . . . Part Schematics Acquired . | . . . . . . Parts Damaged . | . . . . . . Bothacking | -11 -10 -9 -8 -7 -7 ------------ Run | Yrd Mat Mat Mat Fac Low Used RIF Installer . | . . . . . . Robots Hacked . | . . . . . . Non-combat . | . . . . . . Combat . | . . . . . . Robot Hacks Applied . | . . . . . . Relay Couplers Released . | . . . . . . Fabnet Peak Effective % . | . . . . . . Robots Rewired . | . . . . . . Allies Hacked . | . . . . . . Hacks Repelled . | . . . . . . Allies | -11 -10 -9 -8 -7 -7 -------- Run | Yrd Mat Mat Mat Fac Low Total Allies . | . . . . . . Largest Group . | . . . . . . Highest-Rated Group . | . . . . . . Highest-Rated Ally . | . . . . . . Total Orders . | . . . . . . Ally Attacks . | . . . . . . Total Damage . | . . . . . . Kills . | . . . . . . Allies Corrupted . | . . . . . . Allies Melted . | . . . . . . Intel | -11 -10 -9 -8 -7 -7 ------- Run | Yrd Mat Mat Mat Fac Low Robot Analysis Total . | . . . . . . Derelict Logs Recovered . | . . . . . . Drone Launches . | . . . . . . Drone Recoveries . | . . . . . . Exploration | -11 -10 -9 -8 -7 -7 ------------- Run | Yrd Mat Mat Mat Fac Low Turns Passed 553 | . 81 59 173 205 35 Spaces Moved 1045 | 1 148 148 309 370 69 Core 541 | . 1 2 153 316 69 Treads . | . . . . . . Legs 12 | 1 11 . . . . Wheels . | . . . . . . Hover 54 | . . . . 54 . Flight 438 | . 136 146 156 . . Fastest Speed 35 | 120 40 40 35 50 50 Average Speed 45 | 120 46 40 42 50 50 Slowest Speed 120 | 120 120 50 50 50 50 Overloaded Moves . | . . . . . . Propulsion Burnouts . | . . . . . . Robots Hopped 10 | . 3 . 7 . . Cave-ins Triggered . | . . . . . . Exploration Rate (%) 22 | 2 42 24 35 15 15 Regions Visited 5 Branch Regions 1 Pre-discovered Areas . | . . . . . . Known Exits Taken . | . . . . . . Unknown Exits Taken 5 | 1 1 1 1 1 . Scrap Searched . | . . . . . . Spaces Dug . | . . . . . . Terrain Destroyed . | . . . . . . Melee . | . . . . . . Projectile . | . . . . . . AOE . | . . . . . . Terrain Rammed . | . . . . . . Walls Destroyed . | . . . . . . Machines Disabled . | . . . . . . Actions | -11 -10 -9 -8 -7 -7 --------- Run | Yrd Mat Mat Mat Fac Low Total 1104 | . 160 147 340 388 69 Wait 39 | . . . 31 8 . Move 1021 | . 141 147 295 369 69 Hop 9 | . 3 . 6 . . Pick Up 2 | . 1 . 1 . . Fast Attach 11 | . 4 . 5 2 . Attach 1 | . . . 1 . . Detach 2 | . 2 . . . . Swap . | . . . . . . Drop 9 | . 9 . . . . Fire . | . . . . . . Melee . | . . . . . . Ram 10 | . . . 1 9 . Kick . | . . . . . . Crush . | . . . . . . Escape Stasis . | . . . . . . Rewire . | . . . . . . Trap . | . . . . . . Miscellaneous . | . . . . . . Route ------- -11/Scrapyard -10/Materials (discovered 2 exits: [*Mat] / Min) -9/Materials -8/Materials -7/Factory -7/Lower Caves History --------- Turn | Location | Event 1 | -11/Scrapyard | Discovered new exit (range 0) 1 | -11/Scrapyard | Entered Materials 28 | -10/Materials | Identified exit to Mines 74 | -10/Materials | Discovered new exit (range 15) 82 | -10/Materials | Entered another Materials area 82 | -9/Materials | Evolved 2 slots: Utility x2 138 | -9/Materials | Discovered new exit (range 10) 141 | -9/Materials | Entered another Materials area 141 | -8/Materials | Evolved 2 slots: Utility x2 181 | -8/Materials | Lost 3 parts (2n1u) 306 | -8/Materials | Discovered new exit (range 16) 307 | -8/Materials | Core integrity fell below 50% 314 | -8/Materials | Entered Factory 314 | -7/Factory | Evolved 2 slots: Utility x2 340 | -7/Factory | Lost 4 parts (1n3u) 478 | -7/Factory | Core integrity fell below 50% 503 | -7/Factory | Core integrity fell below 20% 515 | -7/Factory | Discovered new exit (range 10) 519 | -7/Factory | Entered Lower Caves 554 | -7/Lower Caves | Destroyed by Y-54 Guardian with Gatling Laser Last Messages --------------- Awaiting botnet instructions. K-01 Serf cleans the Nuclear Reactor. Acquired Imp. Sensor Array. K-01 Serf cleans the Terminal. K-01 Serf collects debris. Acquired Prototype Hover Unit. Identified Aerolev Unit. ALERT: All DSF locations entering lockdown mode. Imp. Sensor Array destroyed. Aerolev Unit destroyed. Slammed into S-27 Virus. Slammed into Y-54 Guardian. Slammed into R-06 Scavenger. Slammed into U-05 Engineer. U-05 Engineer knocked back. Slammed into Y-54 Guardian. Destabilizing: System corrupted (+1). EXIT=FOUND LOCATION=UNKNOWN GOAL=ESCAPE Map ----- +----------------------------------------------------+ | ?????????????????????????????????????????????????? | | ?????????????????????????????????????????????????? | | ?????????????????????????????????????????????????? | | ?????????????????????????????????????????????????? | | ?????????????????????????????????????????????????? | | ?????????????????????????????????????????????????? | | ?????????????????????????????????????????????????? | | ?????????????????????????????????????????????????? | | ?????????????????????????????????????????????????? | | ?????????????????????????????????????????????????? | | ??????????????????????#######????????????????????? | | ??????????????????????# ????????????????????# | | ??????????????????????# ??????????????????## | | ???????????????????#### ??????######??????# # | | ???????????????????? ??????## ##???### # | | ????????????????????? Y ?????## ##### | | ??????????????????????#$ ???### ## | | ??????????????????##### ??## | | ??????????????????# #??# | | ??????????????????# #### | | ???????????????????????# ## | | ???????????????????????# ### | | ???????????????????????## ### ## #?# | | ????????????????????????# #?# #####?## | | ????????????????????????# #?## #??????## | | ????????????????????????#@###??# #???????## | | ??????????????????????? #????# ##????????#### | | ????????????????????? ????# ##????????????### | | ??????????????????? ????# #???????????????? | | ????????????????? ## ???# #???????????????? | | ???????????????# ### ??$ ???# ???????????????? | | ???????????????# ???####?? #??# #???????????????? | | ?????????????????????????? #??# ????????????????? | | ?????????????????????????? S ?? ????????????????? | | ?????????????????????????? m??##????????????????? | | ?????????????????????????? #????????????????????? | | ?????????????????????????? #????????????????????? | | ??????????????????????????? ????????????????????? | | ??????????????????????????? ????????????????????? | | ??????????????????????????? #????????????????????? | | ??????????????????????????? ?????????????????????? | | ?????????????????????????????????????????????????? | | ?????????????????????????????????????????????????? | | ?????????????????????????????????????????????????? | | ?????????????????????????????????????????????????? | | ?????????????????????????????????????????????????? | | ?????????????????????????????????????????????????? | | ?????????????????????????????????????????????????? | | ?????????????????????????????????????????????????? | | ?????????????????????????????????????????????????? | +----------------------------------------------------+ Best States ------------- Heat Dissipation 34 Energy Generation 10 Energy Capacity 125 Matter Stores 300 Matter Capacity 300 Sight Range 16 Robot Scan Range 15 Terrain Scan Range 16 Terrain Scan Density 110 ECM Strength 1 Evasion (%) 63 Offensive Hacking 10 Item Schematics ----------------- None Robot Schematics ------------------ None Fabricated ------------ Nothing Alien Tech Used ----------------- None Achievements -------------- None Challenges ------------ None Game ------ Seed SpacefoldShrapnelManipulator Manual? 0 Play Time 00:11:26 Cumulative 164.1 hours Start 2024.08.04 @ 20:38:11 End 2024.08.04 @ 21:14:37 Sessions 1 Manual Loads 0 Difficulty Rogue Special Mode None Game No. 266 Rogue 264 Adventurer 2 Explorer 0 Win Type - Total 5 Types 4/0/0/1/0/0/0/0/0 Lore% 57 Gallery% 61 Achievement% 52 Wizard Run 0 Options --------- Layout 0 ASCII 0 Keyboard 1 Movement Numpad Keybinds 1 Fullscreen 2 Font 18/SmallcapsGlow Map View 76x50 Zoom Use 0% Tactical HUD 1 Map Filters NONE Filters NONE Steam 1 RUN: 20e4a65c-b5d9-4d0f-b8c6-a9d1c80ce962